[Event "Titled Tuesday Blitz January 17 Late 2023"]
[White "Perez Perez, Gabriel"]
[Black "Kovacs, Klara"]
[WhiteFideId "32089147"]
[BlackFideId "733210"]
[WhiteElo "2185"]
[BlackElo "2121"]
[Result "1/2-1/2"]
[Round "09"]
[TimeControl "180+2"]
[Date "2023.01.17"]
[WhiteClock "0:00:03"]
[BlackClock "0:00:08"]

1. e4 {[%clk 0:03:00]}  e6 {[%clk 0:02:50]} 2. b3 {[%clk 0:02:55]}  d5 {[%clk 0:02:51]} 3. Bb2 {[%clk 0:02:55]}  dxe4 {[%clk 0:02:49]} 4. Qe2 {[%clk 0:02:56]}  Nf6 {[%clk 0:02:49]} 5. Nc3 {[%clk 0:02:56]}  Bb4 {[%clk 0:02:47]} 6. O-O-O {[%clk 0:02:55]}  O-O {[%clk 0:02:46]} 7. Nxe4 {[%clk 0:02:56]}  Nd5 {[%clk 0:02:42]} 8. Kb1 {[%clk 0:02:53]}  Nc6 {[%clk 0:02:35]} 9. g4 {[%clk 0:02:53]}  e5 {[%clk 0:02:33]} 10. h4 {[%clk 0:02:41]}  Nd4 {[%clk 0:02:27]} 11. Bxd4 {[%clk 0:02:38]}  exd4 {[%clk 0:02:28]} 12. Qf3 {[%clk 0:02:22]}  f5 {[%clk 0:02:02]} 13. gxf5 {[%clk 0:02:20]}  Bxf5 {[%clk 0:02:01]} 14. Bh3 {[%clk 0:02:17]}  Bxh3 {[%clk 0:01:36]} 15. Qxh3 {[%clk 0:02:18]}  Qc8 {[%clk 0:01:30]} 16. Qd3 {[%clk 0:02:15]}  c5 {[%clk 0:01:17]} 17. c3 {[%clk 0:01:42]}  Ba5 {[%clk 0:00:39]} 18. Qc4 {[%clk 0:01:29]}  Qf5 {[%clk 0:00:36]} 19. f3 {[%clk 0:01:20]}  Kh8 {[%clk 0:00:32]} 20. Ne2 {[%clk 0:00:57]}  dxc3 {[%clk 0:00:16]} 21. dxc3 {[%clk 0:00:52]}  Ne3 {[%clk 0:00:16]} 22. Ng3 {[%clk 0:00:39]}  Nxc4 {[%clk 0:00:16]} 23. Nxf5 {[%clk 0:00:39]}  Rxf5 {[%clk 0:00:15]} 24. bxc4 {[%clk 0:00:40]}  Rxf3 {[%clk 0:00:15]} 25. Nxc5 {[%clk 0:00:35]}  b6 {[%clk 0:00:15]} 26. Nb3 {[%clk 0:00:24]}  Bxc3 {[%clk 0:00:14]} 27. Rd7 {[%clk 0:00:22]}  Bf6 {[%clk 0:00:14]} 28. h5 {[%clk 0:00:20]}  h6 {[%clk 0:00:14]} 29. Rhd1 {[%clk 0:00:18]}  Rf5 {[%clk 0:00:14]} 30. R1d5 {[%clk 0:00:16]}  Rf1+ {[%clk 0:00:14]} 31. Kc2 {[%clk 0:00:15]}  Rf2+ {[%clk 0:00:14]} 32. Nd2 {[%clk 0:00:12]}  Rc8 {[%clk 0:00:14]} 33. Kb3 {[%clk 0:00:11]}  Rh2 {[%clk 0:00:13]} 34. Ne4 {[%clk 0:00:09]}  Rh3+ {[%clk 0:00:13]} 35. Rd3 {[%clk 0:00:10]}  Rxd3+ {[%clk 0:00:12]} 36. Rxd3 {[%clk 0:00:10]}  Be5 {[%clk 0:00:12]} 37. Rd5 {[%clk 0:00:10]}  Ba1 {[%clk 0:00:11]} 38. Nd6 {[%clk 0:00:10]}  Rc5 {[%clk 0:00:11]} 39. Rd1 {[%clk 0:00:08]}  Bf6 {[%clk 0:00:08]} 40. Ne4 {[%clk 0:00:07]}  Rf5 {[%clk 0:00:08]} 41. Rd7 {[%clk 0:00:06]}  Rxh5 {[%clk 0:00:07]} 42. Nxf6 {[%clk 0:00:04]}  gxf6 {[%clk 0:00:08]} 43. Rxa7 {[%clk 0:00:05]}  b5 {[%clk 0:00:08]} 44. Rf7 {[%clk 0:00:03]}  bxc4+ {[%clk 0:00:08]} 45. Kxc4 {[%clk 0:00:04]}  Ra5 {[%clk 0:00:07]} 46. Rxf6 {[%clk 0:00:03]}  Rxa2 {[%clk 0:00:08]} 47. Rxh6+ {[%clk 0:00:03]}  Kg7 {[%clk 0:00:08]} 48. Rc6 {[%clk 0:00:03]} 1/2-1/2


[Site "https://www.chess.com"]

[Event "Titled Tuesday Blitz January 17 Late 2023"]
[White "Slovineanu, Viacheslav"]
[Black "Kozin, Yuri"]
[WhiteFideId "13900510"]
[BlackFideId "4129920"]
[WhiteElo "2412"]
[BlackElo "2251"]
[Result "1-0"]
[Round "09"]
[TimeControl "180+2"]
[Date "2023.01.17"]
[WhiteClock "0:00:04"]
[BlackClock "0:00:02"]

1. d4 {[%clk 0:02:59]}  d5 {[%clk 0:02:59]} 2. Nf3 {[%clk 0:02:59]}  Nf6 {[%clk 0:02:59]} 3. c4 {[%clk 0:02:58]}  c6 {[%clk 0:02:59]} 4. e3 {[%clk 0:02:58]}  Bf5 {[%clk 0:02:58]} 5. Nc3 {[%clk 0:02:58]}  e6 {[%clk 0:02:58]} 6. Nh4 {[%clk 0:02:58]}  Be4 {[%clk 0:02:59]} 7. f3 {[%clk 0:02:49]}  Bg6 {[%clk 0:02:58]} 8. Qb3 {[%clk 0:02:46]}  Qc7 {[%clk 0:02:58]} 9. Bd2 {[%clk 0:02:45]}  Nbd7 {[%clk 0:02:58]} 10. O-O-O {[%clk 0:02:37]}  Be7 {[%clk 0:02:54]} 11. Nxg6 {[%clk 0:02:33]}  hxg6 {[%clk 0:02:54]} 12. cxd5 {[%clk 0:02:32]}  Nxd5 {[%clk 0:02:50]} 13. e4 {[%clk 0:02:22]}  Nxc3 {[%clk 0:02:40]} 14. Bxc3 {[%clk 0:02:22]}  O-O {[%clk 0:02:39]} 15. Kb1 {[%clk 0:02:12]}  a5 {[%clk 0:02:39]} 16. h4 {[%clk 0:02:09]}  a4 {[%clk 0:02:39]} 17. Qc2 {[%clk 0:02:06]}  b5 {[%clk 0:02:26]} 18. Bd2 {[%clk 0:01:23]}  b4 {[%clk 0:02:17]} 19. Qc1 {[%clk 0:01:14]}  Qb6 {[%clk 0:01:50]} 20. Be3 {[%clk 0:01:13]}  c5 {[%clk 0:01:33]} 21. Bc4 {[%clk 0:01:02]}  cxd4 {[%clk 0:01:24]} 22. Bxd4 {[%clk 0:01:02]}  Bc5 {[%clk 0:01:24]} 23. Bxg7 {[%clk 0:00:51]}  Kxg7 {[%clk 0:01:09]} 24. Rxd7 {[%clk 0:00:50]}  Be3 {[%clk 0:01:06]} 25. Qc2 {[%clk 0:00:50]}  b3 {[%clk 0:01:03]} 26. axb3 {[%clk 0:00:49]}  axb3 {[%clk 0:01:03]} 27. Qxb3 {[%clk 0:00:48]}  Qa5 {[%clk 0:01:01]} 28. Qc3+ {[%clk 0:00:41]}  Qxc3 {[%clk 0:00:53]} 29. bxc3 {[%clk 0:00:41]}  Kf6 {[%clk 0:00:35]} 30. Kc2 {[%clk 0:00:36]}  Ra3 {[%clk 0:00:23]} 31. Kd3 {[%clk 0:00:22]}  Bf4 {[%clk 0:00:21]} 32. Rb1 {[%clk 0:00:20]}  Be5 {[%clk 0:00:21]} 33. Rb3 {[%clk 0:00:20]}  Ra2 {[%clk 0:00:20]} 34. g4 {[%clk 0:00:18]}  Rf2 {[%clk 0:00:16]} 35. g5+ {[%clk 0:00:14]}  Kg7 {[%clk 0:00:14]} 36. Bxe6 {[%clk 0:00:14]}  Rxf3+ {[%clk 0:00:14]} 37. Kc4 {[%clk 0:00:14]}  Rc8+ {[%clk 0:00:13]} 38. Kd5 {[%clk 0:00:14]}  Bxc3 {[%clk 0:00:13]} 39. Rxf7+ {[%clk 0:00:06]}  Rxf7 {[%clk 0:00:12]} 40. Bxc8 {[%clk 0:00:06]}  Be1 {[%clk 0:00:10]} 41. e5 {[%clk 0:00:06]}  Bxh4 {[%clk 0:00:08]} 42. e6 {[%clk 0:00:06]}  Re7 {[%clk 0:00:09]} 43. Kd6 {[%clk 0:00:05]}  Bxg5 {[%clk 0:00:09]} 44. Rb5 {[%clk 0:00:05]}  Bf6 {[%clk 0:00:09]} 45. Rb4 {[%clk 0:00:05]}  g5 {[%clk 0:00:09]} 46. Rb3 {[%clk 0:00:05]}  Re8 {[%clk 0:00:09]} 47. Bd7 {[%clk 0:00:05]}  Re7 {[%clk 0:00:09]} 48. Rf3 {[%clk 0:00:05]}  Kg6 {[%clk 0:00:08]} 49. Rf1 {[%clk 0:00:04]}  g4 {[%clk 0:00:06]} 50. Bc6 {[%clk 0:00:03]}  Bh4 {[%clk 0:00:05]} 51. Rg1 {[%clk 0:00:02]}  Kh5 {[%clk 0:00:03]} 52. Be4 {[%clk 0:00:02]}  g3 {[%clk 0:00:03]} 53. Rh1 {[%clk 0:00:02]}  Re8 {[%clk 0:00:01]} 54. Kd7 {[%clk 0:00:01]}  Re7+ {[%clk 0:00:01]} 55. Kd6 {[%clk 0:00:02]}  Re8 {[%clk 0:00:01]} 56. Bf3+ {[%clk 0:00:01]}  Kg5 {[%clk 0:00:01]} 57. Kd7 {[%clk 0:00:02]}  Rg8 {[%clk 0:00:01]} 58. e7 {[%clk 0:00:02]}  Rg7 {[%clk 0:00:02]} 59. Kd8 {[%clk 0:00:02]}  Kf4 {[%clk 0:00:01]} 60. Rxh4+ {[%clk 0:00:02]}  Kxf3 {[%clk 0:00:02]} 61. e8=Q {[%clk 0:00:02]}  g2 {[%clk 0:00:02]} 62. Rh3+ {[%clk 0:00:02]}  Kf2 {[%clk 0:00:02]} 63. Qe3+ {[%clk 0:00:03]}  Kf1 {[%clk 0:00:02]} 64. Rf3# {[%clk 0:00:04]} 1-0


[Site "https://www.chess.com"]

[Event "Titled Tuesday Blitz January 17 Late 2023"]
[White "Gavilan Diaz, Mario"]
[Black "Vaglio Munoz, Jaime"]
[WhiteFideId "2260905"]
[BlackFideId "6500145"]
[WhiteElo "2271"]
[BlackElo "2174"]
[Result "0-1"]
[Round "09"]
[TimeControl "180+2"]
[Date "2023.01.17"]
[WhiteClock "0:00:01"]
[BlackClock "0:00:08"]

1. d4 {[%clk 0:03:00]}  c6 {[%clk 0:02:55]} 2. c4 {[%clk 0:03:00]}  b5 {[%clk 0:02:56]} 3. cxb5 {[%clk 0:02:55]}  cxb5 {[%clk 0:02:56]} 4. e4 {[%clk 0:02:55]}  Bb7 {[%clk 0:02:57]} 5. Bd3 {[%clk 0:02:53]}  Nf6 {[%clk 0:02:53]} 6. f3 {[%clk 0:02:48]}  a6 {[%clk 0:02:50]} 7. a4 {[%clk 0:02:46]}  b4 {[%clk 0:02:49]} 8. Ne2 {[%clk 0:02:38]}  d6 {[%clk 0:02:46]} 9. O-O {[%clk 0:02:36]}  Nbd7 {[%clk 0:02:46]} 10. a5 {[%clk 0:02:33]}  e5 {[%clk 0:02:41]} 11. Be3 {[%clk 0:02:29]}  Be7 {[%clk 0:02:38]} 12. Nd2 {[%clk 0:02:28]}  O-O {[%clk 0:02:38]} 13. d5 {[%clk 0:02:16]}  Nc5 {[%clk 0:02:33]} 14. Bxc5 {[%clk 0:02:15]}  dxc5 {[%clk 0:02:33]} 15. Nc4 {[%clk 0:02:13]}  Nd7 {[%clk 0:02:31]} 16. Bc2 {[%clk 0:02:06]}  Bg5 {[%clk 0:02:16]} 17. Ba4 {[%clk 0:02:03]}  f6 {[%clk 0:02:03]} 18. Bxd7 {[%clk 0:02:01]}  Qxd7 {[%clk 0:02:03]} 19. Nb6 {[%clk 0:02:01]}  Qb5 {[%clk 0:02:03]} 20. Nxa8 {[%clk 0:01:59]}  Rxa8 {[%clk 0:01:58]} 21. b3 {[%clk 0:01:45]}  Be3+ {[%clk 0:01:56]} 22. Kh1 {[%clk 0:01:45]}  Bc8 {[%clk 0:01:55]} 23. Qc2 {[%clk 0:01:39]}  g6 {[%clk 0:01:51]} 24. Qc4 {[%clk 0:01:14]}  Bd7 {[%clk 0:01:43]} 25. g3 {[%clk 0:01:00]}  Kg7 {[%clk 0:01:42]} 26. Kg2 {[%clk 0:00:59]}  Qb7 {[%clk 0:01:39]} 27. Qc2 {[%clk 0:00:50]}  Bb5 {[%clk 0:01:37]} 28. Rfe1 {[%clk 0:00:49]}  Rc8 {[%clk 0:01:35]} 29. Nc1 {[%clk 0:00:47]}  Bd4 {[%clk 0:01:34]} 30. Rb1 {[%clk 0:00:43]}  c4 {[%clk 0:01:30]} 31. bxc4 {[%clk 0:00:43]}  Rxc4 {[%clk 0:01:30]} 32. Qd1 {[%clk 0:00:43]}  Qc7 {[%clk 0:01:25]} 33. Nd3 {[%clk 0:00:40]}  Rc2+ {[%clk 0:01:23]} 34. Re2 {[%clk 0:00:39]}  Rxe2+ {[%clk 0:01:09]} 35. Qxe2 {[%clk 0:00:40]}  Qc3 {[%clk 0:01:09]} 36. Rd1 {[%clk 0:00:40]}  b3 {[%clk 0:01:08]} 37. Qd2 {[%clk 0:00:36]}  Qxd2+ {[%clk 0:00:45]} 38. Rxd2 {[%clk 0:00:35]}  Bc3 {[%clk 0:00:45]} 39. Rd1 {[%clk 0:00:33]}  Bxa5 {[%clk 0:00:44]} 40. d6 {[%clk 0:00:27]}  Kf7 {[%clk 0:00:43]} 41. d7 {[%clk 0:00:22]}  Ke7 {[%clk 0:00:42]} 42. Nc5 {[%clk 0:00:20]}  b2 {[%clk 0:00:29]} 43. Nb7 {[%clk 0:00:16]}  b1=Q {[%clk 0:00:20]} 44. Rxb1 {[%clk 0:00:14]}  Bb6 {[%clk 0:00:19]} 45. Rd1 {[%clk 0:00:11]}  Bxd7 {[%clk 0:00:18]} 46. Nd6 {[%clk 0:00:08]}  Bd4 {[%clk 0:00:16]} 47. Nc4 {[%clk 0:00:07]}  Ba4 {[%clk 0:00:16]} 48. Rc1 {[%clk 0:00:06]}  Bb5 {[%clk 0:00:16]} 49. Na5 {[%clk 0:00:05]}  Kd7 {[%clk 0:00:15]} 50. Nb3 {[%clk 0:00:04]}  Bb6 {[%clk 0:00:13]} 51. Nc5+ {[%clk 0:00:04]}  Ke7 {[%clk 0:00:12]} 52. Nb3 {[%clk 0:00:01]}  Kd7 {[%clk 0:00:11]} 53. Nd2 {[%clk 0:00:02]}  f5 {[%clk 0:00:10]} 54. Nc4 {[%clk 0:00:02]}  Bd4 {[%clk 0:00:09]} 55. Na3 {[%clk 0:00:01]}  Bc6 {[%clk 0:00:08]} 0-1


[Site "https://www.chess.com"]

[Event "Titled Tuesday Blitz January 17 Late 2023"]
[White "Kaplan, Avi Harrison"]
[Black "Van Dael, Siem"]
[WhiteFideId "30934559"]
[BlackFideId "1049771"]
[WhiteElo "2146"]
[BlackElo "2319"]
[Result "0-1"]
[Round "09"]
[TimeControl "180+2"]
[Date "2023.01.17"]
[WhiteClock "0:00:04"]
[BlackClock "0:00:03"]

1. d4 {[%clk 0:03:00]}  Nf6 {[%clk 0:02:38]} 2. Nc3 {[%clk 0:02:58]}  d5 {[%clk 0:02:38]} 3. Bf4 {[%clk 0:02:59]}  Bf5 {[%clk 0:02:36]} 4. Nb5 {[%clk 0:02:56]}  Na6 {[%clk 0:02:35]} 5. e3 {[%clk 0:02:56]}  c6 {[%clk 0:02:34]} 6. Nc3 {[%clk 0:02:56]}  Nc7 {[%clk 0:02:34]} 7. Nf3 {[%clk 0:02:56]}  Ne6 {[%clk 0:02:30]} 8. Bg3 {[%clk 0:02:52]}  g5 {[%clk 0:02:30]} 9. Ne5 {[%clk 0:02:40]}  Bg7 {[%clk 0:02:28]} 10. Be2 {[%clk 0:02:33]}  Ne4 {[%clk 0:02:26]} 11. Nxe4 {[%clk 0:02:15]}  Bxe4 {[%clk 0:02:27]} 12. h4 {[%clk 0:02:10]}  h6 {[%clk 0:02:20]} 13. Bh5 {[%clk 0:02:02]}  Bxe5 {[%clk 0:02:11]} 14. Bxe5 {[%clk 0:02:00]}  Rg8 {[%clk 0:02:12]} 15. hxg5 {[%clk 0:01:57]}  hxg5 {[%clk 0:02:12]} 16. f3 {[%clk 0:01:30]}  Bg6 {[%clk 0:02:12]} 17. Bxg6 {[%clk 0:01:30]}  Rxg6 {[%clk 0:02:12]} 18. Rh8+ {[%clk 0:01:30]}  Nf8 {[%clk 0:02:13]} 19. f4 {[%clk 0:01:23]}  gxf4 {[%clk 0:02:05]} 20. Qh5 {[%clk 0:01:22]}  e6 {[%clk 0:01:56]} 21. Bxf4 {[%clk 0:01:06]}  Qa5+ {[%clk 0:01:50]} 22. c3 {[%clk 0:01:02]}  O-O-O {[%clk 0:01:50]} 23. Qe5 {[%clk 0:01:00]}  Nd7 {[%clk 0:01:48]} 24. Rxd8+ {[%clk 0:00:53]}  Qxd8 {[%clk 0:01:48]} 25. Qh5 {[%clk 0:00:47]}  Rxg2 {[%clk 0:01:43]} 26. O-O-O {[%clk 0:00:47]}  Qg8 {[%clk 0:01:27]} 27. Rh1 {[%clk 0:00:40]}  Rg1+ {[%clk 0:01:27]} 28. Rxg1 {[%clk 0:00:31]}  Qxg1+ {[%clk 0:01:28]} 29. Kd2 {[%clk 0:00:32]}  Qg2+ {[%clk 0:01:25]} 30. Kc1 {[%clk 0:00:30]}  Qg8 {[%clk 0:01:19]} 31. Bh2 {[%clk 0:00:22]}  b6 {[%clk 0:01:17]} 32. Qh4 {[%clk 0:00:22]}  f6 {[%clk 0:01:09]} 33. Qf4 {[%clk 0:00:16]}  e5 {[%clk 0:01:09]} 34. dxe5 {[%clk 0:00:16]}  fxe5 {[%clk 0:01:10]} 35. Qf5 {[%clk 0:00:16]}  Qe8 {[%clk 0:01:04]} 36. Kc2 {[%clk 0:00:17]}  Kb7 {[%clk 0:01:00]} 37. b3 {[%clk 0:00:17]}  a5 {[%clk 0:01:00]} 38. Kb2 {[%clk 0:00:18]}  Nc5 {[%clk 0:00:56]} 39. Kc2 {[%clk 0:00:15]}  e4 {[%clk 0:00:53]} 40. Qf4 {[%clk 0:00:15]}  Qd8 {[%clk 0:00:50]} 41. Qf7+ {[%clk 0:00:13]}  Qd7 {[%clk 0:00:49]} 42. Qg8 {[%clk 0:00:12]}  Na6 {[%clk 0:00:44]} 43. b4 {[%clk 0:00:10]}  axb4 {[%clk 0:00:44]} 44. cxb4 {[%clk 0:00:11]}  Nxb4+ {[%clk 0:00:44]} 45. Kb3 {[%clk 0:00:12]}  Na6 {[%clk 0:00:45]} 46. a4 {[%clk 0:00:12]}  c5 {[%clk 0:00:43]} 47. Ka3 {[%clk 0:00:10]}  c4 {[%clk 0:00:42]} 48. Qf8 {[%clk 0:00:08]}  c3 {[%clk 0:00:35]} 49. Be5 {[%clk 0:00:07]}  c2 {[%clk 0:00:35]} 50. Kb2 {[%clk 0:00:07]}  c1=Q+ {[%clk 0:00:18]} 51. Kxc1 {[%clk 0:00:07]}  Qc8+ {[%clk 0:00:19]} 52. Qxc8+ {[%clk 0:00:07]}  Kxc8 {[%clk 0:00:20]} 53. Kd2 {[%clk 0:00:08]}  Nc5 {[%clk 0:00:19]} 54. Kc3 {[%clk 0:00:04]}  Kd7 {[%clk 0:00:17]} 55. Kb4 {[%clk 0:00:04]}  Kc6 {[%clk 0:00:17]} 56. Bd4 {[%clk 0:00:04]}  Nd3+ {[%clk 0:00:16]} 57. Kc3 {[%clk 0:00:04]}  Nc5 {[%clk 0:00:13]} 58. Kb4 {[%clk 0:00:05]}  Ne6 {[%clk 0:00:13]} 59. Be5 {[%clk 0:00:04]}  Nc7 {[%clk 0:00:08]} 60. Bd4 {[%clk 0:00:02]}  Ne8 {[%clk 0:00:07]} 61. Be5 {[%clk 0:00:02]}  Nd6 {[%clk 0:00:06]} 62. Bd4 {[%clk 0:00:02]}  Nc4 {[%clk 0:00:06]} 63. Kc3 {[%clk 0:00:02]}  Kb7 {[%clk 0:00:05]} 64. Kb4 {[%clk 0:00:02]}  Ka6 {[%clk 0:00:06]} 65. Kc3 {[%clk 0:00:02]}  Ka5 {[%clk 0:00:05]} 66. Kb3 {[%clk 0:00:03]}  Nd2+ {[%clk 0:00:05]} 67. Ka3 {[%clk 0:00:04]}  Nf3 {[%clk 0:00:04]} 68. Bg7 {[%clk 0:00:02]}  Ka6 {[%clk 0:00:04]} 69. Bf6 {[%clk 0:00:02]}  Ne1 {[%clk 0:00:04]} 70. Kb3 {[%clk 0:00:02]}  Ng2 {[%clk 0:00:04]} 71. Bd4 {[%clk 0:00:03]}  Nh4 {[%clk 0:00:04]} 72. Kb4 {[%clk 0:00:03]}  Nf5 {[%clk 0:00:05]} 73. Be5 {[%clk 0:00:04]}  Nxe3 {[%clk 0:00:05]} 74. Bf4 {[%clk 0:00:04]}  Nc4 {[%clk 0:00:05]} 75. Kc3 {[%clk 0:00:04]}  Ka5 {[%clk 0:00:06]} 76. Kd4 {[%clk 0:00:05]}  Kxa4 {[%clk 0:00:06]} 77. Kxd5 {[%clk 0:00:06]}  b5 {[%clk 0:00:04]} 78. Kxe4 {[%clk 0:00:06]}  b4 {[%clk 0:00:04]} 79. Kd3 {[%clk 0:00:06]}  b3 {[%clk 0:00:03]} 80. Kc3 {[%clk 0:00:05]}  b2 {[%clk 0:00:02]} 81. Kc2 {[%clk 0:00:05]}  Ka3 {[%clk 0:00:03]} 82. Kb1 {[%clk 0:00:05]}  Kb3 {[%clk 0:00:03]} 83. Bd6 {[%clk 0:00:04]}  Nd2# {[%clk 0:00:03]} 0-1


[Site "https://www.chess.com"]

[Event "Titled Tuesday Blitz January 17 Late 2023"]
[White "Desideri, Ricardo Maruchi"]
[Black "Hajiyev, Kanan"]
[WhiteFideId "2110440"]
[BlackFideId "13404148"]
[WhiteElo "1959"]
[BlackElo "2197"]
[Result "0-1"]
[Round "09"]
[TimeControl "180+2"]
[Date "2023.01.17"]
[WhiteClock "0:00:01"]
[BlackClock "0:00:17"]

1. e4 {[%clk 0:03:00]}  c6 {[%clk 0:02:34]} 2. d4 {[%clk 0:02:58]}  d5 {[%clk 0:02:35]} 3. e5 {[%clk 0:02:58]}  a6 {[%clk 0:02:34]} 4. c4 {[%clk 0:02:55]}  Bf5 {[%clk 0:02:34]} 5. Nc3 {[%clk 0:02:54]}  e6 {[%clk 0:02:34]} 6. h4 {[%clk 0:02:52]}  h5 {[%clk 0:02:34]} 7. Bd3 {[%clk 0:02:49]}  Ne7 {[%clk 0:02:33]} 8. Nge2 {[%clk 0:02:43]}  Nd7 {[%clk 0:02:31]} 9. c5 {[%clk 0:02:40]}  b6 {[%clk 0:02:25]} 10. b4 {[%clk 0:02:38]}  a5 {[%clk 0:02:25]} 11. bxa5 {[%clk 0:02:31]}  bxc5 {[%clk 0:02:24]} 12. f4 {[%clk 0:02:22]}  c4 {[%clk 0:02:16]} 13. Bc2 {[%clk 0:02:15]}  Bxc2 {[%clk 0:02:15]} 14. Qxc2 {[%clk 0:02:13]}  Nf5 {[%clk 0:02:13]} 15. Qa4 {[%clk 0:01:54]}  Ra6 {[%clk 0:01:40]} 16. Rb1 {[%clk 0:01:49]}  Nxh4 {[%clk 0:01:26]} 17. O-O {[%clk 0:01:29]}  Be7 {[%clk 0:01:12]} 18. Ng3 {[%clk 0:01:19]}  g6 {[%clk 0:01:09]} 19. Ba3 {[%clk 0:00:46]}  Qxa5 {[%clk 0:00:48]} 20. Qxa5 {[%clk 0:00:41]}  Rxa5 {[%clk 0:00:49]} 21. Bxe7 {[%clk 0:00:39]}  Kxe7 {[%clk 0:00:50]} 22. Rb7 {[%clk 0:00:37]}  Rha8 {[%clk 0:00:50]} 23. Rfb1 {[%clk 0:00:34]}  R8a7 {[%clk 0:00:48]} 24. a4 {[%clk 0:00:30]}  Kd8 {[%clk 0:00:45]} 25. Kf2 {[%clk 0:00:23]}  Kc8 {[%clk 0:00:44]} 26. R7b2 {[%clk 0:00:19]}  Kc7 {[%clk 0:00:41]} 27. Kg1 {[%clk 0:00:16]}  R5a6 {[%clk 0:00:37]} 28. Kf2 {[%clk 0:00:14]}  Rb6 {[%clk 0:00:36]} 29. Nge2 {[%clk 0:00:12]}  Rxb2 {[%clk 0:00:35]} 30. Rxb2 {[%clk 0:00:11]}  Nb6 {[%clk 0:00:34]} 31. Rb4 {[%clk 0:00:09]}  Ra5 {[%clk 0:00:31]} 32. g3 {[%clk 0:00:06]}  Nf5 {[%clk 0:00:32]} 33. Kf3 {[%clk 0:00:05]}  Ra8 {[%clk 0:00:24]} 34. Kf2 {[%clk 0:00:04]}  Ne7 {[%clk 0:00:17]} 35. Kf3 {[%clk 0:00:03]}  Nec8 {[%clk 0:00:18]} 36. g4 {[%clk 0:00:02]}  hxg4+ {[%clk 0:00:16]} 37. Kxg4 {[%clk 0:00:02]}  Na7 {[%clk 0:00:16]} 38. Kg5 {[%clk 0:00:01]}  Nd7 {[%clk 0:00:17]} 0-1


[Site "https://www.chess.com"]

[Event "Titled Tuesday Blitz January 17 Late 2023"]
[White "Winterberg, Lukas"]
[Black "Garcia Almaguer, Juan Manuel"]
[WhiteFideId "24622702"]
[BlackFideId "5110491"]
[WhiteElo "2402"]
[BlackElo "2090"]
[Result "0-1"]
[Round "09"]
[TimeControl "180+2"]
[Date "2023.01.17"]
[WhiteClock "0:00:20"]
[BlackClock "0:00:14"]

1. Nc3 {[%clk 0:02:56]}  Nf6 {[%clk 0:02:57]} 2. d4 {[%clk 0:02:55]}  e6 {[%clk 0:02:58]} 3. Bf4 {[%clk 0:02:55]}  Bb4 {[%clk 0:02:58]} 4. Nf3 {[%clk 0:02:52]}  Bxc3+ {[%clk 0:02:47]} 5. bxc3 {[%clk 0:02:51]}  Ne4 {[%clk 0:02:47]} 6. e3 {[%clk 0:02:32]}  O-O {[%clk 0:02:44]} 7. Bd3 {[%clk 0:02:31]}  f5 {[%clk 0:02:44]} 8. c4 {[%clk 0:02:26]}  d6 {[%clk 0:02:35]} 9. Bg3 {[%clk 0:02:13]}  Nd7 {[%clk 0:02:25]} 10. Bh4 {[%clk 0:02:00]}  Ndf6 {[%clk 0:02:17]} 11. Nd2 {[%clk 0:01:49]}  g5 {[%clk 0:01:56]} 12. Bxe4 {[%clk 0:01:43]}  gxh4 {[%clk 0:01:56]} 13. Bd3 {[%clk 0:01:41]}  c5 {[%clk 0:01:30]} 14. c3 {[%clk 0:01:32]}  Bd7 {[%clk 0:01:24]} 15. Nf3 {[%clk 0:01:31]}  Ne4 {[%clk 0:01:16]} 16. Bxe4 {[%clk 0:01:22]}  fxe4 {[%clk 0:01:16]} 17. Nd2 {[%clk 0:01:22]}  Qg5 {[%clk 0:01:09]} 18. O-O {[%clk 0:01:16]}  Bc6 {[%clk 0:01:03]} 19. Qe2 {[%clk 0:01:10]}  h3 {[%clk 0:00:50]} 20. g3 {[%clk 0:01:05]}  Rf7 {[%clk 0:00:49]} 21. f4 {[%clk 0:01:05]}  exf3 {[%clk 0:00:48]} 22. Nxf3 {[%clk 0:01:05]}  Qh5 {[%clk 0:00:46]} 23. d5 {[%clk 0:01:04]}  exd5 {[%clk 0:00:45]} 24. Nd4 {[%clk 0:00:57]}  Qxe2 {[%clk 0:00:43]} 25. Nxe2 {[%clk 0:00:58]}  dxc4 {[%clk 0:00:38]} 26. Nf4 {[%clk 0:00:55]}  Re8 {[%clk 0:00:35]} 27. Kf2 {[%clk 0:00:52]}  d5 {[%clk 0:00:18]} 28. Rad1 {[%clk 0:00:50]}  b5 {[%clk 0:00:19]} 29. Rfe1 {[%clk 0:00:38]}  b4 {[%clk 0:00:18]} 30. cxb4 {[%clk 0:00:33]}  cxb4 {[%clk 0:00:19]} 31. Kg1 {[%clk 0:00:32]}  Rxf4 {[%clk 0:00:18]} 32. gxf4 {[%clk 0:00:31]}  Kf7 {[%clk 0:00:17]} 33. e4 {[%clk 0:00:25]}  dxe4 {[%clk 0:00:16]} 34. Rd4 {[%clk 0:00:25]}  e3 {[%clk 0:00:14]} 35. Rxc4 {[%clk 0:00:24]}  Rg8+ {[%clk 0:00:14]} 36. Kf1 {[%clk 0:00:22]}  Bb5 {[%clk 0:00:14]} 37. Rc1 {[%clk 0:00:20]}  Rc8 {[%clk 0:00:14]} 38. Ke2 {[%clk 0:00:20]}  Rxc4 {[%clk 0:00:14]} 0-1


[Site "https://www.chess.com"]